[Event "78th GEO-ch 2019"]
[Site "Tbilisi"]
[Date "2019.02.06"]
[Round "1.1"]
[White "Lortkipanidze, Nodar"]
[Black "Pantsulaia, Levan"]
[Result "0-1"]
[ECO "B30"]
[WhiteElo "2326"]
[BlackElo "2611"]
[Annotator "ChessBase"]
[PlyCount "82"]
[EventDate "2019.02.06"]
[EventType "k.o."]
[EventCountry "GEO"]
[SourceTitle "playchess.com"]
[Source "ChessBase"]
[SourceQuality "1"]
[TimeControl "40/5400+30:1800+30"]

1. e4 {[%emt 0:00:00]} c5 {[%emt 0:00:00]} 2. Nf3 {[%emt 0:00:00]} Nc6 {[%emt 0:00:31]} 3. c3 {[%emt 0:00:00]} Nf6 {[%emt 0:00:52]} 4. e5 {[%emt 0:00:25]} Nd5 {[%emt 0:00:09]} 5. d4 {[%emt 0:01:08]} cxd4 {[%emt 0:00:13]} 6. cxd4 {[%emt 0:00:18]} d6 {[%emt 0:00:19]} 7. Bc4 {[%emt 0:00:54]} Nb6 {[%emt 0:00:30]} 8. Bb5 {[%emt 0:00:28]} dxe5 {[%emt 0:00:34]} 9. Nxe5 {[%emt 0:00:13]} Bd7 {[%emt 0:01:22]} 10. Nxd7 {[%emt 0:00:26]} Qxd7 {[%emt 0:01:00]} 11. O-O {[%emt 0:00:56]} e6 {[%emt 0:08:58]} 12. Qg4 {[%emt 0:01:11]} h5 {[%emt 0:03:12]} 13. Qe2 {[%emt 0:06:01]} Rc8 {[%emt 0:16:26]} 14. Rd1 {[%emt 0:02:34]} a6 {[%emt 0:00:33]} 15. Bxc6 {[%emt 0:00:09]} Rxc6 {[%emt 0:00:06]} 16. Nc3 {[%emt 0:03:04]} Nd5 {[%emt 0:00:59]} 17. Qe5 {[%emt 0:06:17]} f6 {[%emt 0:03:27]} 18. Qe4 {[%emt 0:03:32]} Kf7 {[%emt 0:03:35]} 19. Qf3 {[%emt 0:10:20]} Nxc3 {[%emt 0:06:26]} 20. bxc3 {[%emt 0:00:06]} Qd5 {[%emt 0:00:05]} 21. Qh3 {[%emt 0:01:41]} b5 {[%emt 0:05:46]} 22. Bd2 {[%emt 0:03:47]} Rc4 {[%emt 0:02:13]} 23. Re1 {[%emt 0:06:56]} Ra4 {[%emt 0:01:49]} 24. a3 {[%emt 0:00:56]} Bd6 {[%emt 0:01:38]} 25. Re2 {[%emt 0:02:18]} Rxa3 {[%emt 0:01:36]} 26. Rae1 {[%emt 0:03:50]} Re8 {[%emt 0:00:34]} 27. f4 {[%emt 0:03:54]} Re7 {[%emt 0:04:21]} 28. Rf2 {[%emt 0:11:51]} Qf5 {[%emt 0:09:03]} 29. Qf3 {[%emt 0:01:22]} Ra2 {[%emt 0:00:38]} 30. Qc6 {[%emt 0:02:40]} Qd5 {[%emt 0:05:51]} 31. Qc8 {[%emt 0:00:06]} a5 {[%emt 0:00:26]} 32. f5 {[%emt 0:08:34]} exf5 {[%emt 0:00:27]} 33. Ref1 {[%emt 0:07:46]} f4 {[%emt 0:00:30]} 34. Qd8 {[%emt 0:00:09]} f3 {[%emt 0:01:00]} 35. g3 {[%emt 0:02:34]} a4 {[%emt 0:09:13]} 36. Qh8 {[%emt 0:03:25]} Re2 {[%emt 0:01:45]} 37. Rxf3 {[%emt 0:00:32]} Raxd2 {[%emt 0:00:16]} 38. Rxf6+ {[%emt 0:00:57]} gxf6 {[%emt 0:00:06]} 39. Rxf6+ {[%emt 0:00:14]} Ke7 {[%emt 0:00:06]} 40. Qf8+ {[%emt 0:00:00]} Kd7 {[%emt 0:00:00]} 41. Rf7+ {[%emt 0:00:14]} Be7 {[%emt 0:00:21]} 0-1

[Event "78th GEO-ch 2019"]
[Site "Tbilisi"]
[Date "2019.02.08"]
[Round "1.5"]
[White "Maghalashvili, Davit"]
[Black "Petriashvili, Nikoloz"]
[Result "1-0"]
[ECO "A06"]
[WhiteElo "2504"]
[BlackElo "2464"]
[Annotator "ChessBase"]
[PlyCount "119"]
[EventDate "2019.02.06"]
[EventType "k.o."]
[EventCountry "GEO"]
[SourceTitle "playchess.com"]
[Source "ChessBase"]
[SourceQuality "1"]
[TimeControl "600+10"]

1. Nf3 {[%emt 0:00:00]} d5 {[%emt 0:00:00]} 2. g3 {[%emt 0:00:00]} Nf6 {[%emt 0:00:00]} 3. Bg2 {[%emt 0:00:00]} g6 {[%emt 0:00:00]} 4. b3 {[%emt 0:00:33]} Bg7 {[%emt 0:00:00]} 5. Bb2 {[%emt 0:00:02]} O-O {[%emt 0:00:01]} 6. c4 {[%emt 0:00:07]} c6 {[%emt 0:00:09]} 7. O-O {[%emt 0:00:14]} Bf5 {[%emt 0:00:03]} 8. d3 {[%emt 0:00:27]} a5 {[%emt 0:00:54]} 9. a3 {[%emt 0:00:31]} Na6 {[%emt 0:00:02]} 10. Nbd2 {[%emt 0:00:07]} Nc5 {[%emt 0:00:54]} 11. b4 {[%emt 0:00:22]} Na6 {[%emt 0:00:13]} 12. Bc3 {[%emt 0:00:38]} axb4 {[%emt 0:00:01]} 13. axb4 {[%emt 0:00:01]} Qb6 {[%emt 0:00:12]} 14. Qb3 {[%emt 0:01:44]} Rfd8 {[%emt 0:00:06]} 15. Qb2 {[%emt 0:00:55]} Ne8 {[%emt 0:00:49]} 16. Bxg7 {[%emt 0:00:05]} Nxg7 {[%emt 0:00:08]} 17. Rfb1 {[%emt 0:00:09]} Bg4 {[%emt 0:00:58]} 18. b5 {[%emt 0:00:42]} Nc5 {[%emt 0:00:52]} 19. Rxa8 {[%emt 0:00:02]} Rxa8 {[%emt 0:00:02]} 20. bxc6 {[%emt 0:00:46]} Qxb2 {[%emt 0:00:18]} 21. Rxb2 {[%emt 0:00:01]} bxc6 {[%emt 0:00:02]} 22. Nd4 {[%emt 0:00:17]} Ra1+ {[%emt 0:00:38]} 23. Nf1 {[%emt 0:01:08]} Nge6 {[%emt 0:01:01]} 24. Nxc6 {[%emt 0:00:11]} dxc4 {[%emt 0:00:03]} 25. dxc4 {[%emt 0:00:09]} Ng5 {[%emt 0:00:34]} 26. h4 {[%emt 0:01:35]} Nh3+ {[%emt 0:00:01]} 27. Kh2 {[%emt 0:00:02]} Nxf2 {[%emt 0:00:01]} 28. Nxe7+ {[%emt 0:00:14]} Kg7 {[%emt 0:00:40]} 29. Nd5 {[%emt 0:00:43]} Be6 {[%emt 0:00:32]} 30. Nfe3 {[%emt 0:00:15]} Nce4 {[%emt 0:00:12]} 31. Bf3 {[%emt 0:00:23]} Rc1 {[%emt 0:01:19]} 32. Rb7 {[%emt 0:00:41]} h5 {[%emt 0:00:06]} 33. Rc7 {[%emt 0:00:20]} Nd2 {[%emt 0:00:10]} 34. Kg2 {[%emt 0:00:17]} Ng4 {[%emt 0:00:30]} 35. Bxg4 {[%emt 0:00:22]} hxg4 {[%emt 0:00:32]} 36. c5 {[%emt 0:00:14]} Bxd5+ {[%emt 0:00:18]} 37. Nxd5 {[%emt 0:00:03]} Ne4 {[%emt 0:00:03]} 38. c6 {[%emt 0:00:14]} Rc2 {[%emt 0:00:08]} 39. Nf4 {[%emt 0:00:26]} Rc3 {[%emt 0:00:03]} 40. Re7 {[%emt 0:00:27]} Nf6 {[%emt 0:01:08]} 41. Ne6+ {[%emt 0:01:00]} Kg8 {[%emt 0:00:01]} 42. Nd4 {[%emt 0:00:19]} Nd5 {[%emt 0:00:26]} 43. Rd7 {[%emt 0:00:05]} Nf6 {[%emt 0:00:36]} 44. Ra7 {[%emt 0:00:13]} Nd5 {[%emt 0:00:03]} 45. e4 {[%emt 0:00:07]} Ne3+ {[%emt 0:00:41]} 46. Kf2 {[%emt 0:00:02]} Nc2 {[%emt 0:00:01]} 47. c7 {[%emt 0:00:12]} Nxd4 {[%emt 0:00:26]} 48. Ra8+ {[%emt 0:00:01]} Kg7 {[%emt 0:00:02]} 49. c8=Q {[%emt 0:00:01]} Rxc8 {[%emt 0:00:02]} 50. Rxc8 {[%emt 0:00:01]} Ne6 {[%emt 0:00:08]} 51. Ke3 {[%emt 0:00:05]} Kf6 {[%emt 0:00:01]} 52. Ra8 {[%emt 0:00:07]} Ke7 {[%emt 0:00:05]} 53. e5 {[%emt 0:00:27]} f5 {[%emt 0:00:16]} 54. exf6+ {[%emt 0:00:17]} Kxf6 {[%emt 0:00:01]} 55. Ra6 {[%emt 0:00:09]} Kf5 {[%emt 0:00:01]} 56. Ra5+ {[%emt 0:00:02]} Kf6 {[%emt 0:00:01]} 57. Ke4 {[%emt 0:00:08]} Kf7 {[%emt 0:00:19]} 58. Ke5 {[%emt 0:00:06]} Ng7 {[%emt 0:00:14]} 59. Ra7+ {[%emt 0:00:10]} Kg8 {[%emt 0:00:01]} 60. Kf6 {[%emt 0:00:06]} 1-0

[Event "78th GEO-ch 2019"]
[Site "Tbilisi"]
[Date "2019.02.08"]
[Round "1.6"]
[White "Petriashvili, Nikoloz"]
[Black "Maghalashvili, Davit"]
[Result "1/2-1/2"]
[ECO "A13"]
[WhiteElo "2464"]
[BlackElo "2504"]
[Annotator "RC"]
[PlyCount "76"]
[EventDate "2019.02.06"]
[EventType "k.o."]
[EventCountry "GEO"]
[SourceTitle "playchess.com"]
[Source "ChessBase"]
[SourceQuality "1"]
[TimeControl "600+10"]

1. c4 {[%emt 0:00:18]} e6 {[%emt 0:00:00]} 2. Nf3 {[%emt 0:00:02]} d5 {[%emt 0:00:00]} 3. b3 {[%emt 0:00:01]} Nf6 {[%emt 0:00:00]} 4. g3 {[%emt 0:00:01]} Be7 {[%emt 0:00:00]} 5. Bg2 {[%emt 0:00:01]} O-O {[%emt 0:00:00]} 6. O-O {[%emt 0:00:03]} c5 {[%emt 0:00:00]} 7. cxd5 {[%emt 0:00:01]} Nxd5 {[%emt 0:00:02]} 8. Bb2 {[%emt 0:00:01]} Nc6 {[%emt 0:00:02]} 9. d4 {[%emt 0:00:25]} cxd4 {[%emt 0:00:06]} 10. Nxd4 {[%emt 0:00:02]} Bd7 {[%emt 0:00:01]} 11. Nc3 {[%emt 0:00:38]} Nxc3 {[%emt 0:00:14]} 12. Bxc3 {[%emt 0:00:03]} Rc8 {[%emt 0:00:47]} 13. e3 {[%emt 0:00:17]} Bf6 {[%emt 0:00:31]} 14. Nxc6 {[%emt 0:01:55]} Bxc6 {[%emt 0:00:08]} 15. Qxd8 {[%emt 0:00:03]} Rfxd8 {[%emt 0:00:05]} 16. Bxf6 {[%emt 0:00:03]} gxf6 {[%emt 0:00:02]} 17. Rfc1 {[%emt 0:00:38]} Bxg2 {[%emt 0:00:06]} 18. Kxg2 {[%emt 0:00:01]} Rxc1 {[%emt 0:00:18]} 19. Rxc1 {[%emt 0:00:02]} Rd2 {[%emt 0:00:04]} 20. a4 {[%emt 0:00:02]} Rb2 {[%emt 0:00:04]} 21. Rc3 {[%emt 0:00:02]} f5 {[%emt 0:00:17]} 22. h3 {[%emt 0:00:07]} h5 {[%emt 0:00:13]} 23. Kf3 {[%emt 0:00:02]} Kg7 {[%emt 0:00:04]} 24. a5 {[%emt 0:00:08]} Kf6 {[%emt 0:00:23]} 25. h4 {[%emt 0:00:04]} Kg6 {[%emt 0:00:22]} 26. Kf4 {[%emt 0:00:47]} Rxf2+ {[%emt 0:01:53]} 27. Ke5 {[%emt 0:00:01]} Rd2 {[%emt 0:00:17]} 28. Rc5 {[%emt 0:00:02]} b6 {[%emt 0:01:18]} 29. axb6 {[%emt 0:00:02]} axb6 {[%emt 0:00:01]} 30. Rb5 {[%emt 0:00:03]} Rd3 {[%emt 0:00:09]} 31. Kf4 {[%emt 0:00:44]} Rd6 {[%emt 0:00:15]} 32. Ke5 {[%emt 0:00:01]} Rd3 {[%emt 0:00:09]} 33. Rxb6 {[%emt 0:00:29]} Rxe3+ {[%emt 0:00:04]} 34. Kf4 {[%emt 0:00:33]} Rc3 {[%emt 0:00:20]} 35. Rb8 {[%emt 0:00:07]} f6 {[%emt 0:00:27]} 36. Rg8+ {[%emt 0:00:05]} Kf7 {[%emt 0:00:06]} 37. Rb8 {[%emt 0:00:01]} Kg6 {[%emt 0:00:05]} 38. Rg8+ {[%emt 0:00:02]} Kf7 1/2-1/2

[Event "78th GEO-ch 2019"]
[Site "Tbilisi"]
[Date "2019.02.09"]
[Round "2.1"]
[White "Pantsulaia, Levan"]
[Black "Beradze, Irakli"]
[Result "1/2-1/2"]
[ECO "A39"]
[WhiteElo "2611"]
[BlackElo "2490"]
[Annotator "ChessBase"]
[PlyCount "121"]
[EventDate "2019.02.06"]
[EventType "k.o."]
[EventCountry "GEO"]
[SourceTitle "playchess.com"]
[Source "ChessBase"]
[SourceQuality "1"]
[TimeControl "40/5400+30:1800+30"]

1. c4 {[%emt 0:04:34]} Nf6 {[%emt 0:01:43]} 2. g3 {[%emt 0:01:53]} c5 {[%emt 0:01:01]} 3. Bg2 {[%emt 0:00:19]} g6 {[%emt 0:00:57]} 4. Nf3 {[%emt 0:02:37]} Nc6 {[%emt 0:00:31]} 5. O-O {[%emt 0:01:13]} Bg7 {[%emt 0:00:11]} 6. Nc3 {[%emt 0:00:15]} O-O {[%emt 0:00:14]} 7. d4 {[%emt 0:00:04]} cxd4 {[%emt 0:00:24]} 8. Nxd4 {[%emt 0:00:04]} Qa5 {[%emt 0:01:33]} 9. Nb3 {[%emt 0:04:26]} Qh5 {[%emt 0:00:27]} 10. c5 {[%emt 0:00:10]} d6 {[%emt 0:01:09]} 11. cxd6 {[%emt 0:00:46]} Rd8 {[%emt 0:00:17]} 12. e4 {[%emt 0:01:01]} Qxd1 {[%emt 0:00:29]} 13. Rxd1 {[%emt 0:00:06]} Rxd6 {[%emt 0:00:19]} 14. Rxd6 {[%emt 0:04:34]} exd6 {[%emt 0:01:44]} 15. h3 {[%emt 0:03:02]} Be6 {[%emt 0:03:02]} 16. Be3 {[%emt 0:05:52]} Ne8 {[%emt 0:03:43]} 17. Rd1 {[%emt 0:16:35]} Nb4 {[%emt 0:08:39]} 18. Na5 {[%emt 0:00:34]} Nxa2 {[%emt 0:20:29]} 19. Nxa2 {[%emt 0:00:33]} Bxa2 {[%emt 0:00:04]} 20. e5 {[%emt 0:03:00]} Bxe5 {[%emt 0:12:47]} 21. Bxb7 {[%emt 0:00:22]} Rd8 {[%emt 0:00:09]} 22. Bxa7 {[%emt 0:01:38]} Be6 {[%emt 0:10:33]} 23. b4 {[%emt 0:05:25]} Rd7 {[%emt 0:13:59]} 24. Bd4 {[%emt 0:04:35]} Bxd4 {[%emt 0:05:02]} 25. Rxd4 {[%emt 0:00:21]} Rc7 {[%emt 0:02:50]} 26. Bc6 {[%emt 0:00:33]} Bd7 {[%emt 0:00:05]} 27. Bxd7 {[%emt 0:00:13]} Rxd7 {[%emt 0:00:03]} 28. b5 {[%emt 0:00:09]} Ra7 {[%emt 0:01:23]} 29. Ra4 {[%emt 0:14:19]} Nf6 {[%emt 0:00:22]} 30. b6 {[%emt 0:00:08]} Ra6 {[%emt 0:00:04]} 31. b7 {[%emt 0:00:04]} Nd7 {[%emt 0:00:15]} 32. Ra3 {[%emt 0:05:01]} Kf8 {[%emt 0:05:43]} 33. Nc4 {[%emt 0:04:20]} Rxa3 {[%emt 0:01:33]} 34. Nxa3 {[%emt 0:00:05]} Ke7 {[%emt 0:00:25]} 35. Nc4 {[%emt 0:02:58]} Nb8 {[%emt 0:00:55]} 36. Kg2 {[%emt 0:05:07]} Kd7 {[%emt 0:00:17]} 37. Kf3 {[%emt 0:01:02]} Kc6 {[%emt 0:00:23]} 38. Ke3 {[%emt 0:00:32]} Kc5 {[%emt 0:03:13]} 39. Kd3 {[%emt 0:02:40]} Nd7 {[%emt 0:00:55]} 40. g4 {[%emt 0:00:00]} h6 {[%emt 0:00:00]} 41. h4 {[%emt 0:06:39]} d5 {[%emt 0:13:04]} 42. Na5 {[%emt 0:02:30]} Nb8 {[%emt 0:06:14]} 43. f4 {[%emt 0:06:45]} Kb6 {[%emt 0:05:29]} 44. Kd4 {[%emt 0:00:26]} Kxa5 {[%emt 0:00:07]} 45. Kxd5 {[%emt 0:00:05]} Kb6 {[%emt 0:00:21]} 46. Ke5 {[%emt 0:00:19]} Kxb7 {[%emt 0:01:14]} 47. Kf6 {[%emt 0:00:06]} Nd7+ {[%emt 0:00:42]} 48. Kxf7 {[%emt 0:03:05]} g5 {[%emt 0:00:03]} 49. fxg5 {[%emt 0:01:11]} hxg5 {[%emt 0:00:20]} 50. hxg5 {[%emt 0:00:31]} Ne5+ {[%emt 0:00:03]} 51. Ke6 {[%emt 0:00:16]} Nxg4 {[%emt 0:00:06]} 52. Kf5 {[%emt 0:00:04]} Ne3+ {[%emt 0:00:34]} 53. Ke4 {[%emt 0:00:06]} Kc6 {[%emt 0:01:26]} 54. Kxe3 {[%emt 0:00:13]} Kd5 {[%emt 0:00:17]} 55. Kf4 {[%emt 0:00:09]} Ke6 {[%emt 0:00:04]} 56. Kg4 {[%emt 0:00:08]} Kf7 {[%emt 0:00:05]} 57. Kf5 {[%emt 0:00:05]} Kg7 {[%emt 0:00:03]} 58. g6 {[%emt 0:00:05]} Kg8 {[%emt 0:00:05]} 59. Kf6 {[%emt 0:00:05]} Kf8 {[%emt 0:00:04]} 60. g7+ {[%emt 0:00:05]} Kg8 {[%emt 0:00:04]} 61. Kg6 1/2-1/2

[Event "78th GEO-ch 2019"]
[Site "Tbilisi"]
[Date "2019.02.09"]
[Round "2.1"]
[White "Paichadze, Luka"]
[Black "Maghalashvili, Davit"]
[Result "1-0"]
[ECO "B53"]
[WhiteElo "2580"]
[BlackElo "2504"]
[Annotator "ChessBase"]
[PlyCount "123"]
[EventDate "2019.02.06"]
[EventType "k.o."]
[EventCountry "GEO"]
[SourceTitle "playchess.com"]
[Source "ChessBase"]
[SourceQuality "1"]
[TimeControl "40/5400+30:1800+30"]

1. e4 {[%emt 0:00:00]} c5 {[%emt 0:00:00]} 2. Nf3 {[%emt 0:00:00]} d6 {[%emt 0:00:00]} 3. d4 {[%emt 0:00:40]} cxd4 {[%emt 0:00:00]} 4. Qxd4 {[%emt 0:00:08]} Nc6 {[%emt 0:00:00]} 5. Bb5 {[%emt 0:00:04]} Bd7 {[%emt 0:00:00]} 6. Qd3 {[%emt 0:00:15]} g6 {[%emt 0:00:24]} 7. O-O {[%emt 0:00:49]} Bg7 {[%emt 0:00:08]} 8. c4 {[%emt 0:00:12]} Nf6 {[%emt 0:00:14]} 9. h3 {[%emt 0:00:32]} O-O {[%emt 0:00:43]} 10. Nc3 {[%emt 0:00:10]} Rc8 {[%emt 0:01:18]} 11. Be3 {[%emt 0:01:48]} a6 {[%emt 0:03:48]} 12. Bxc6 {[%emt 0:00:08]} Bxc6 {[%emt 0:00:06]} 13. Nd4 {[%emt 0:02:28]} Nd7 {[%emt 0:00:32]} 14. Rac1 {[%emt 0:04:45]} Nc5 {[%emt 0:06:33]} 15. Qb1 {[%emt 0:00:25]} Ne6 {[%emt 0:02:40]} 16. Rfd1 {[%emt 0:05:04]} Nxd4 {[%emt 0:06:03]} 17. Bxd4 {[%emt 0:00:10]} Bh6 {[%emt 0:05:50]} 18. Rc2 {[%emt 0:01:42]} b5 {[%emt 0:00:15]} 19. c5 {[%emt 0:17:43]} b4 {[%emt 0:03:29]} 20. Nd5 {[%emt 0:00:06]} e5 {[%emt 0:03:50]} 21. Be3 {[%emt 0:02:09]} Bxd5 {[%emt 0:02:25]} 22. Rxd5 {[%emt 0:02:00]} Bxe3 {[%emt 0:00:18]} 23. fxe3 {[%emt 0:00:05]} Qg5 {[%emt 0:00:18]} 24. Qc1 {[%emt 0:02:18]} Rxc5 {[%emt 0:02:52]} 25. Rcxc5 {[%emt 0:00:10]} dxc5 {[%emt 0:00:04]} 26. Qxc5 {[%emt 0:00:36]} Re8 {[%emt 0:01:49]} 27. Rd3 {[%emt 0:05:23]} Rb8 {[%emt 0:20:32]} 28. Kh1 {[%emt 0:12:46]} h5 {[%emt 0:03:08]} 29. Rd1 {[%emt 0:07:05]} Qf6 {[%emt 0:06:25]} 30. Rd6 {[%emt 0:04:23]} Qf1+ {[%emt 0:10:30]} 31. Kh2 {[%emt 0:00:05]} Qb5 {[%emt 0:01:28]} 32. Qc7 {[%emt 0:01:46]} Re8 {[%emt 0:01:46]} 33. Rf6 {[%emt 0:01:27]} Rf8 {[%emt 0:00:30]} 34. Rb6 {[%emt 0:00:08]} Qe2 {[%emt 0:12:19]} 35. Rxb4 {[%emt 0:01:36]} Qxe3 {[%emt 0:01:21]} 36. Qxe5 {[%emt 0:00:10]} h4 {[%emt 0:00:42]} 37. Rb3 {[%emt 0:01:21]} Qe1 {[%emt 0:00:09]} 38. Rf3 {[%emt 0:00:50]} a5 {[%emt 0:04:24]} 39. Qf4 {[%emt 0:01:03]} a4 {[%emt 0:00:52]} 40. Rf2 {[%emt 0:00:00]} Qb1 {[%emt 0:00:00]} 41. a3 {[%emt 0:02:05]} Qd3 {[%emt 0:10:00]} 42. Qxh4 {[%emt 0:04:12]} Qd6+ {[%emt 0:04:45]} 43. Qg3 {[%emt 0:00:05]} Qe6 {[%emt 0:00:53]} 44. e5 {[%emt 0:08:45]} Re8 {[%emt 0:01:01]} 45. Re2 {[%emt 0:00:18]} Qf5 {[%emt 0:01:55]} 46. Qe3 {[%emt 0:00:24]} Re6 {[%emt 0:04:47]} 47. Qe4 {[%emt 0:01:37]} Qf1 {[%emt 0:01:57]} 48. Re3 {[%emt 0:06:00]} Qb5 {[%emt 0:05:49]} 49. Qd4 {[%emt 0:00:11]} Rb6 {[%emt 0:01:35]} 50. Re4 {[%emt 0:01:19]} Qxb2 {[%emt 0:00:35]} 51. Qxa4 {[%emt 0:01:32]} Kg7 {[%emt 0:02:11]} 52. Qa7 {[%emt 0:03:42]} Rb7 {[%emt 0:01:15]} 53. Qe3 {[%emt 0:00:53]} Rb3 {[%emt 0:01:04]} 54. Qg5 {[%emt 0:01:19]} Rb5 {[%emt 0:00:54]} 55. a4 {[%emt 0:00:24]} Rb4 {[%emt 0:00:31]} 56. Qf6+ {[%emt 0:09:16]} Kg8 {[%emt 0:00:03]} 57. Qf4 {[%emt 0:00:05]} Rxe4 {[%emt 0:00:41]} 58. Qxe4 {[%emt 0:00:04]} Qd2 {[%emt 0:00:25]} 59. e6 {[%emt 0:02:56]} Qd6+ {[%emt 0:00:19]} 60. g3 {[%emt 0:00:04]} f5 {[%emt 0:00:46]} 61. Qe3 {[%emt 0:03:10]} Kf8 {[%emt 0:00:41]} 62. Qh6+ {[%emt 0:00:40]} 1-0

[Event "78th GEO-ch 2019"]
[Site "Tbilisi"]
[Date "2019.02.09"]
[Round "2.1"]
[White "Quparadze, Giga"]
[Black "Jojua, Davit"]
[Result "1-0"]
[ECO "C77"]
[WhiteElo "2493"]
[BlackElo "2588"]
[Annotator "ChessBase"]
[PlyCount "133"]
[EventDate "2019.02.06"]
[EventType "k.o."]
[EventCountry "GEO"]
[SourceTitle "playchess.com"]
[Source "ChessBase"]
[SourceQuality "1"]
[TimeControl "40/5400+30:1800+30"]

1. e4 {[%emt 0:00:00]} e5 {[%emt 0:00:00]} 2. Nf3 {[%emt 0:00:00]} Nc6 {[%emt 0:00:00]} 3. Bb5 {[%emt 0:00:00]} a6 {[%emt 0:00:00]} 4. Ba4 {[%emt 0:00:00]} Nf6 {[%emt 0:00:00]} 5. d3 {[%emt 0:00:18]} d6 {[%emt 0:01:00]} 6. c3 {[%emt 0:00:07]} g6 {[%emt 0:00:13]} 7. O-O {[%emt 0:00:07]} Bg7 {[%emt 0:00:04]} 8. Re1 {[%emt 0:00:06]} O-O {[%emt 0:00:20]} 9. Nbd2 {[%emt 0:00:05]} b5 {[%emt 0:02:59]} 10. Bb3 {[%emt 0:00:56]} Na5 {[%emt 0:01:11]} 11. Bc2 {[%emt 0:00:06]} c5 {[%emt 0:00:05]} 12. Nf1 {[%emt 0:01:14]} Nc6 {[%emt 0:04:42]} 13. Bg5 {[%emt 0:00:16]} h6 {[%emt 0:01:40]} 14. Bh4 {[%emt 0:00:24]} Be6 {[%emt 0:05:09]} 15. Bb3 {[%emt 0:00:42]} Qd7 {[%emt 0:26:20]} 16. Bxf6 {[%emt 0:01:14]} Bxf6 {[%emt 0:00:06]} 17. Ne3 {[%emt 0:00:21]} Bg7 {[%emt 0:02:28]} 18. a4 {[%emt 0:00:40]} Ne7 {[%emt 0:03:27]} 19. h4 {[%emt 0:09:08]} d5 {[%emt 0:23:08]} 20. exd5 {[%emt 0:00:59]} Nxd5 {[%emt 0:01:59]} 21. Nxd5 {[%emt 0:00:23]} Bxd5 {[%emt 0:00:03]} 22. Nxe5 {[%emt 0:00:13]} Qd6 {[%emt 0:02:16]} 23. d4 {[%emt 0:00:14]} Bxb3 {[%emt 0:02:36]} 24. Qxb3 {[%emt 0:00:07]} cxd4 {[%emt 0:00:35]} 25. cxd4 {[%emt 0:00:06]} Qxd4 {[%emt 0:02:49]} 26. Nxg6 {[%emt 0:01:08]} Qxb2 {[%emt 0:01:42]} 27. Ne7+ {[%emt 0:01:26]} Kh8 {[%emt 0:00:05]} 28. Qe3 {[%emt 0:01:07]} Qc3 {[%emt 0:05:30]} 29. Qf4 {[%emt 0:01:53]} Qd4 {[%emt 0:03:13]} 30. Qf3 {[%emt 0:00:54]} Qc3 {[%emt 0:02:40]} 31. Qg4 {[%emt 0:02:15]} Rae8 {[%emt 0:02:12]} 32. Rad1 {[%emt 0:00:19]} bxa4 {[%emt 0:01:45]} 33. Qxa4 {[%emt 0:00:16]} Rd8 {[%emt 0:03:07]} 34. Qxa6 {[%emt 0:00:57]} Rxd1 {[%emt 0:01:46]} 35. Rxd1 {[%emt 0:00:06]} Re8 {[%emt 0:00:51]} 36. Qe2 {[%emt 0:03:28]} Qe5 {[%emt 0:01:24]} 37. Qxe5 {[%emt 0:00:36]} Bxe5 {[%emt 0:00:00]} 38. Nf5 {[%emt 0:00:10]} Re6 {[%emt 0:00:33]} 39. h5 {[%emt 0:00:06]} Rf6 {[%emt 0:00:51]} 40. g4 {[%emt 0:00:00]} Rb6 {[%emt 0:00:00]} 41. Rd5 {[%emt 0:00:58]} Bf4 {[%emt 0:05:32]} 42. Rd4 {[%emt 0:00:16]} Bc1 {[%emt 0:02:21]} 43. Kg2 {[%emt 0:00:08]} Ba3 {[%emt 0:01:08]} 44. Rd3 {[%emt 0:00:30]} Bb2 {[%emt 0:04:26]} 45. Rd8+ {[%emt 0:01:26]} Kh7 {[%emt 0:00:05]} 46. Nd6 {[%emt 0:02:38]} Rb4 {[%emt 0:03:27]} 47. f3 {[%emt 0:00:15]} Be5 {[%emt 0:02:31]} 48. Nxf7 {[%emt 0:00:35]} Bf4 {[%emt 0:00:14]} 49. Rd7 {[%emt 0:00:55]} Kg8 {[%emt 0:04:37]} 50. Nd8 {[%emt 0:00:06]} Rb6 {[%emt 0:06:08]} 51. Kf1 {[%emt 0:00:56]} Bg5 {[%emt 0:01:15]} 52. Nb7 {[%emt 0:00:37]} Rb3 {[%emt 0:01:44]} 53. Kg2 {[%emt 0:00:48]} Be3 {[%emt 0:01:11]} 54. Nd6 {[%emt 0:02:21]} Rd3 {[%emt 0:01:54]} 55. Rd8+ {[%emt 0:00:06]} Kh7 {[%emt 0:00:02]} 56. Nf7 {[%emt 0:00:14]} Ra3 {[%emt 0:00:30]} 57. Rd7 {[%emt 0:00:10]} Kg8 {[%emt 0:00:13]} 58. Ne5 {[%emt 0:01:14]} Bf4 {[%emt 0:00:18]} 59. Ng6 {[%emt 0:00:21]} Ra2+ {[%emt 0:01:51]} 60. Kf1 {[%emt 0:00:14]} Ra3 {[%emt 0:00:19]} 61. Ke2 {[%emt 0:00:08]} Ra2+ {[%emt 0:00:10]} 62. Kd1 {[%emt 0:00:29]} Ra1+ {[%emt 0:00:17]} 63. Kc2 {[%emt 0:00:06]} Bg5 {[%emt 0:00:23]} 64. f4 {[%emt 0:01:11]} Bf6 {[%emt 0:01:04]} 65. g5 {[%emt 0:00:49]} Bg7 {[%emt 0:01:27]} 66. Ne7+ {[%emt 0:00:32]} Kf8 {[%emt 0:00:32]} 67. Nf5 {[%emt 0:00:07]} 1-0

[Event "78th GEO-ch 2019"]
[Site "Tbilisi"]
[Date "2019.02.10"]
[Round "2.2"]
[White "Jojua, Davit"]
[Black "Quparadze, Giga"]
[Result "1-0"]
[ECO "A40"]
[WhiteElo "2588"]
[BlackElo "2493"]
[Annotator "ChessBase"]
[PlyCount "61"]
[EventDate "2019.02.06"]
[EventType "k.o."]
[EventCountry "GEO"]
[SourceTitle "playchess.com"]
[Source "ChessBase"]
[SourceQuality "1"]
[TimeControl "40/5400+30:1800+30"]

1. d4 {[%emt 0:00:35]} Nf6 {[%emt 0:00:00]} 2. c4 {[%emt 0:00:02]} e6 {[%emt 0:00:00]} 3. g3 {[%emt 0:00:03]} Bb4+ {[%emt 0:00:00]} 4. Bd2 {[%emt 0:00:05]} a5 {[%emt 0:00:00]} 5. Bg2 {[%emt 0:00:21]} d5 {[%emt 0:00:02]} 6. Nf3 {[%emt 0:00:52]} O-O {[%emt 0:00:07]} 7. Qc2 {[%emt 0:00:54]} c6 {[%emt 0:00:07]} 8. O-O {[%emt 0:00:42]} Be7 {[%emt 0:00:04]} 9. Bf4 {[%emt 0:01:43]} b6 {[%emt 0:00:16]} 10. Ne5 {[%emt 0:01:41]} Bb7 {[%emt 0:00:24]} 11. Rd1 {[%emt 0:05:47]} Nfd7 {[%emt 0:07:23]} 12. e4 {[%emt 0:10:37]} Nxe5 {[%emt 0:00:30]} 13. Bxe5 {[%emt 0:00:03]} Na6 {[%emt 0:03:57]} 14. a3 {[%emt 0:07:26]} Rc8 {[%emt 0:00:21]} 15. Nc3 {[%emt 0:04:23]} Bd6 {[%emt 0:05:53]} 16. Bxd6 {[%emt 0:09:11]} Qxd6 {[%emt 0:00:11]} 17. Qb3 {[%emt 0:00:05]} dxc4 {[%emt 0:08:05]} 18. Qxb6 {[%emt 0:00:35]} Qc7 {[%emt 0:00:08]} 19. Na4 {[%emt 0:00:44]} Rfd8 {[%emt 0:00:22]} 20. Rac1 {[%emt 0:02:20]} c5 {[%emt 0:01:02]} 21. Qxc7 {[%emt 0:06:06]} Rxc7 {[%emt 0:00:08]} 22. d5 {[%emt 0:00:53]} exd5 {[%emt 0:04:03]} 23. exd5 {[%emt 0:00:05]} Bc8 {[%emt 0:01:07]} 24. Nb6 {[%emt 0:08:02]} Bg4 {[%emt 0:00:05]} 25. Rd2 {[%emt 0:00:09]} Re7 {[%emt 0:00:41]} 26. Nxc4 {[%emt 0:02:10]} a4 {[%emt 0:00:04]} 27. Ne3 {[%emt 0:04:16]} Bd7 {[%emt 0:00:45]} 28. Bf1 {[%emt 0:00:08]} Ra8 {[%emt 0:00:03]} 29. d6 {[%emt 0:01:25]} Ree8 {[%emt 0:00:46]} 30. Nd5 {[%emt 0:00:06]} Red8 {[%emt 0:00:37]} 31. Nc7 {[%emt 0:00:18]} 1-0